Workbook

Sheet 2024
I1: Приложение 4
I2: к постановлению администрации города Усолье-Сибирское
I3: от 07.11.2025 г. № 2026-па
I5: «Приложение 4
I6: к муниципальной программе города Усолье-Сибирское
I7: "Формирование современной городской среды" на 2018-2030 годы
A9: Информация об участии муниципального образования «город Усолье-Сибирское» в государственных программах Иркутской области в рамках муниципальной программы города Усолье-Сибирское
A10: "Формирование современной городской среды" на 2018-2030 годы
A11: (далее – муниципальная программа)
A13: № п/п | B13: Наименование мероприятия, подпрограммы государственной программы Иркутской области | C13: Наименование мероприятия, подпрограммы муниципальной программы | D13: Год реализации | E13: Общий объем финансирования, руб. | F13: Федеральный бюджет, руб. | G13: Областной бюджет, руб. | H13: Иные источники финансирования, руб. | I13: Местный бюджет (софинансирование), руб.
A14: 1 | B14: Государственная программа Иркутской области «Формирование современной городской среды» на 2018 - 2020 годы
A15: 1 | B15: Субсидии в целях софинансирования расходных обязательств муниципальных образований Иркутской области на поддержку муниципальных программ формирования современной городской среды. Основное мероприятие «Поддержка муниципальных образований Иркутской области по проведению благоустройства территорий» Подпрограмма «Развитие благоустройства территорий муниципальных образований Иркутской области» на 2018 - 2020 годы | C15: Мероприятие 1.1. «Благоустройство дворовых территорий многоквартирных домов (Поддержка программ формирования современной городской среды)» Подпрограммы «Развитие благоустройства территории города Усолье-Сибирское» на 2018-2020 годы | D15: Итого | E15: =F15+G15+I15 -> 93,517,766.70 | F15: =F16+F17+F18 -> 70,113,465.27 | G15: =G16+G17+G18 -> 18,858,255.43 | H15: 0.00 | I15: 4,546,046.00
D16: 2018 | E16: 25,995,670.82 | F16: 18,085,144.54 | G16: 7,119,444.05 | H16: 0.00 | I16: 791,082.23
D17: 2019 | E17: 39,817,981.61 | F17: 30,075,835.07 | G17: 6,591,582.44 | H17: 0.00 | I17: 3,150,564.10
D18: 2020 | E18: 27,704,114.27 | F18: 21,952,485.66 | G18: 5,147,228.94 | H18: 0.00 | I18: 604,399.67
C19: Мероприятие 1.2. «Благоустройство территорий общего пользования (Поддержка программ формирования современной городской среды)» Подпрограммы «Развитие благоустройства территории города Усолье-Сибирское» на 2018-2020 годы | D19: Итого | E19: 58,702,561.04 | F19: =F20+F21+F22 -> 43,900,063.41 | G19: =G20+G21+G22 -> 12,081,091.14 | H19: 0.00 | I19: 2,721,406.49
D20: 2018 | E20: 17,906,868.12 | F20: 12,457,777.21 | G20: 4,904,161.42 | H20: 0.00 | I20: 544,929.49
D21: 2019 | E21: 21,842,512.55 | F21: 16,438,729.68 | G21: 3,602,800.78 | H21: 0.00 | I21: 1,800,982.09
D22: 2020 | E22: 18,953,180.37 | F22: 15,003,556.52 | G22: 3,574,128.94 | H22: 0.00 | I22: 375,494.91
C23: Мероприятие 1.5. «Мероприятия по реализации проекта создания комфортной городской среды города Усолье-Сибирское – финалиста Всероссийского конкурса лучших проектов создания комфортной городской среды» Подпрограммы «Развитие благоустройства территории города Усолье-Сибирское» на 2018-2020 годы | D23: Итого | E23: 40,090,316.78 | F23: =F24+F25+F26 -> 31,705,359.05 | G23: =G24+G25+G26 -> 7,554,105.94 | H23: 0.00 | I23: 830,851.79
D24: 2018 | E24: 0.00 | F24: 0.00 | G24: 0.00 | H24: 0.00 | I24: 0.00
D25: 2019 | E25: 0.00 | F25: 0.00 | G25: 0.00 | H25: 0.00 | I25: 0.00
D26: 2020 | E26: 40,090,316.78 | F26: 31,705,359.05 | G26: 7,554,105.94 | H26: 0.00 | I26: 830,851.79
A27: ВСЕГО (2018-2020 годы): | D27: Итого | E27: =F27+G27+I27+H27 -> 192,310,644.52 | F27: =F28+F29+F30 -> 145,718,887.73 | G27: =G28+G29+G30 -> 38,493,452.51 | H27: 0.00 | I27: 8,098,304.28
D28: 2018 | E28: =F28+G28+I28+H28 -> 43,902,538.94 | F28: =F16+F20+F24 -> 30,542,921.75 | G28: 12,023,605.47 | H28: 0.00 | I28: =I16+I20+I24 -> 1,336,011.72
D29: 2019 | E29: 61,660,494.16 | F29: 46,514,564.75 | G29: 10,194,383.22 | H29: =H17+H21+H25 -> 0.00 | I29: =I17+I21+I25 -> 4,951,546.19
D30: 2020 | E30: 86,747,611.42 | F30: 68,661,401.23 | G30: 16,275,463.82 | H30: 0.00 | I30: =I18+I22+I26 -> 1,810,746.37
A31: 1 | B31: Государственная программа Иркутской области «Формирование современной городской среды» на 2018 - 2024 годы Государственная программа Иркутской области «Формирование современной городской среды» на 2025 - 2030 годы
A32: 1 | B32: Субсидии в целях софинансирования расходных обязательств муниципальных образований Иркутской области на поддержку муниципальных программ формирования современной городской среды. Основное мероприятие «Поддержка муниципальных образований Иркутской области по проведению благоустройства территорий» Подпрограмма «Развитие благоустройства территорий муниципальных образований Иркутской области» на 2018 - 2030 годы РП Иркутской области "Формирование комфортной городской среды" Мероприятие (результат): Повышена комфортность городской среды, в том числе общественных пространств В муниципальных образованиях Иркутской области реализованы мероприятия по благоустройству мест массового отдыха населения (городских парков), общественных территорий (набережные, центральные площади, парки и др.) и иные мероприятия муниципальных образований, предусмотренные государственными(муниципальными) программами формирования современной городской среды. РП Иркутской области "Формирование комфортной городской среды" Мероприятие (результат): Реализация проектов победителей Всероссийского конкурса лучших проектов создания комфортной городской среды в малых городах и исторических поселениях. | C32: Мероприятие 1.1. «Формирование комфортной городской среды» Подпрограммы «Развитие благоустройства территории города Усолье-Сибирское» на 2018-2030 годы, в т.ч.: | D32: Итого | E32: =F32+G32+H32+I32 -> 205,080,517.36 | F32: =SUM(F33:F42) -> 155,096,062.81 | G32: =SUM(G33:G42) -> 36,969,337.19 | H32: 0.00 | I32: 13,015,117.36
D33: 2021 | E33: =F33+G33+H33+I33 -> 46,807,091.02 | F33: =F44+F55 -> 35,262,405.98 | G33: 10,568,894.02 | H33: 0.00 | I33: =I44+I55 -> 975,791.02
D34: 2022 | E34: 40,732,600.00 | F34: 31,741,337.63 | G34: 8,092,062.37 | H34: 0.00 | I34: =I45+I56 -> 899,200.00
D35: 2023 | E35: 41,817,281.00 | F35: 30,843,662.14 | G35: 7,958,637.86 | H35: 0.00 | I35: =I46+I57 -> 3,014,981.00
D36: 2024 | E36: 42,475,000.00 | F36: 32,320,182.66 | G36: 9,037,717.34 | H36: 0.00 | I36: =I47+I58 -> 1,117,100.00
D37: 2025 | E37: =F37+G37+H37+I37 -> 27,248,545.34 | F37: 24,928,474.40 | G37: =G48+G59 -> 1,312,025.60 | H37: 0.00 | I37: =I48+I59 -> 1,008,045.34
D38: 2026 | E38: =F38+G38+H38+I38 -> 1,200,000.00 | F38: =F49+F60 -> 0.00 | G38: =G49+G60 -> 0.00 | H38: 0.00 | I38: =I49+I60 -> 1,200,000.00
D39: 2027 | E39: 1,200,000.00 | F39: =F50+F61 -> 0.00 | G39: 0.00 | H39: 0.00 | I39: 1,200,000.00
D40: 2028 | E40: 1,200,000.00 | F40: =F51+F62 -> 0.00 | G40: 0.00 | H40: 0.00 | I40: 1,200,000.00
D41: 2029 | E41: 1,200,000.00 | F41: =F52+F63 -> 0.00 | G41: 0.00 | H41: 0.00 | I41: 1,200,000.00
D42: 2030 | E42: 1,200,000.00 | F42: =F53+F64 -> 0.00 | G42: 0.00 | H42: 0.00 | I42: 1,200,000.00
C43: «Благоустройство дворовых территорий многоквартирных домов» | D43: Итого | E43: =F43+G43+H43+I43 -> 136,002,396.20 | F43: =SUM(F44:F53) -> 102,658,186.55 | G43: =SUM(G44:G53) -> 24,995,343.24 | H43: 0.00 | I43: 8,348,866.41
D44: 2021 | E44: =F44+G44+H44+I44 -> 23,586,322.10 | F44: 17,768,898.85 | G44: 5,325,717.38 | H44: 0.00 | I44: 491,705.87
D45: 2022 | E45: 35,767,048.96 | F45: 27,871,876.02 | G45: 7,105,590.88 | H45: 0.00 | I45: 789,582.06
D46: 2023 | E46: 30,002,481.00 | F46: 21,684,367.43 | G46: 5,595,250.87 | H46: 0.00 | I46: 2,722,862.70
D47: 2024 | E47: 29,579,030.00 | F47: 22,507,349.09 | G47: 6,293,747.20 | H47: 0.00 | I47: 777,933.71
D48: 2025 | E48: 13,567,514.14 | F48: 12,825,695.16 | G48: 675,036.91 | H48: 0.00 | I48: 66,782.07
D49: 2026 | E49: 700,000.00 | F49: 0.00 | G49: 0.00 | H49: 0.00 | I49: 700,000.00
D50: 2027 | E50: 700,000.00 | F50: 0.00 | G50: 0.00 | H50: 0.00 | I50: 700,000.00
D51: 2028 | E51: 700,000.00 | F51: 0.00 | G51: 0.00 | H51: 0.00 | I51: 700,000.00
D52: 2029 | E52: 700,000.00 | F52: 0.00 | G52: 0.00 | H52: 0.00 | I52: 700,000.00
D53: 2030 | E53: 700,000.00 | F53: 0.00 | G53: 0.00 | H53: 0.00 | I53: 700,000.00
C54: «Благоустройство территорий общего пользования» | D54: Итого | E54: =F54+G54+H54+I54 -> 69,078,121.16 | F54: =SUM(F55:F64) -> 52,437,876.26 | G54: =SUM(G55:G64) -> 11,973,993.95 | H54: 0.00 | I54: 4,666,250.95
D55: 2021 | E55: =F55+G55+H55+I55 -> 23,220,768.92 | F55: 17,493,507.13 | G55: 5,243,176.64 | H55: 0.00 | I55: 484,085.15
D56: 2022 | E56: 4,965,551.04 | F56: 3,869,461.61 | G56: 986,471.49 | H56: 0.00 | I56: 109,617.94
D57: 2023 | E57: 11,814,800.00 | F57: 9,159,294.71 | G57: 2,363,386.99 | H57: 0.00 | I57: 292,118.30
D58: 2024 | E58: 12,895,970.00 | F58: 9,812,833.57 | G58: 2,743,970.14 | H58: 0.00 | I58: 339,166.29
D59: 2025 | E59: 13,681,031.20 | F59: 12,102,779.24 | G59: 636,988.69 | H59: 0.00 | I59: 941,263.27
D60: 2026 | E60: 500,000.00 | F60: 0.00 | G60: 0.00 | H60: 0.00 | I60: 500,000.00
D61: 2027 | E61: 500,000.00 | F61: 0.00 | G61: 0.00 | H61: 0.00 | I61: 500,000.00
D62: 2028 | E62: 500,000.00 | F62: 0.00 | G62: 0.00 | H62: 0.00 | I62: 500,000.00
D63: 2029 | E63: 500,000.00 | F63: 0.00 | G63: 0.00 | H63: 0.00 | I63: 500,000.00
D64: 2030 | E64: 500,000.00 | F64: 0.00 | G64: 0.00 | H64: 0.00 | I64: 500,000.00
C65: Мероприятие 1.2. «Создание комфортной городской среды в малых городах и исторических поселениях - победителях Всероссийского конкурса лучших проектов создания комфортной городской среды (озеро Молодежное)» Подпрограммы «Развитие благоустройства территории города Усолье-Сибирское» на 2018-2030 годы | D65: Итого | E65: =F65+G65+H65+I65 -> 96,992,300.00 | F65: =SUM(F66:F66) -> 80,000,000.00 | G65: =SUM(G66:G66) -> 16,992,300.00 | H65: =SUM(H66:H66) -> 0.00 | I65: =SUM(I66:I66) -> 0.00
D66: 2021 | E66: =F66+G66+H66+I66 -> 96,992,300.00 | F66: 80,000,000.00 | G66: 16,992,300.00 | H66: 0.00 | I66: 0.00
C67: Мероприятие 1.3. «Концепция благоустройства ул. Интернациональной «Город из трамвайного окна» в г. Усолье-Сибирское» Подпрограммы «Развитие благоустройства территории города Усолье-Сибирское» на 2018-2030 годы | D67: Итого | E67: =E68 -> 108,560,304.40 | F67: =F68 -> 95,000,000.00 | G67: 1,000,000.00 | H67: 0.00 | I67: 12,560,304.40
D68: 2023 | E68: =F68+G68+H68+I68 -> 108,560,304.40 | F68: 95,000,000.00 | G68: 1,000,000.00 | H68: 0.00 | I68: 12,560,304.40
C69: Мероприятие 1.4. «Город из трамвайного окна 2: молекулярное наследие. Концепция благоустройства территории улиц Менделеева и Интернациональная в г. Усолье-Сибирское» Подпрограммы «Развитие благоустройства территории города Усолье-Сибирское» на 2018-2030 годы | D69: Итого | E69: =E70 -> 135,000,000.00 | F69: =F70 -> 98,705,500.00 | G69: 31,794,500.00 | H69: 0.00 | I69: 4,500,000.00
D70: 2024 | E70: =F70+G70+H70+I70 -> 135,000,000.00 | F70: 98,705,500.00 | G70: 31,794,500.00 | H70: 0.00 | I70: 4,500,000.00
A71: ВСЕГО (2021-2030 годы): | D71: Итого | E71: =F71+G71+H71+I71 -> 545,633,121.76 | F71: =SUM(F72:F81) -> 428,801,562.81 | G71: =SUM(G72:G81) -> 86,756,137.19 | H71: 0.00 | I71: 30,075,421.76
D72: 2021 | E72: =F72+G72+H72+I72 -> 143,799,391.02 | F72: =F33+F66 -> 115,262,405.98 | G72: =G33+G66 -> 27,561,194.02 | H72: =H33+H66 -> 0.00 | I72: =I33+I66 -> 975,791.02
D73: 2022 | E73: =F73+G73+H73+I73 -> 40,732,600.00 | F73: =F34 -> 31,741,337.63 | G73: =G34 -> 8,092,062.37 | H73: 0.00 | I73: 899,200.00
D74: 2023 | E74: 150,377,585.40 | F74: =F35+F67 -> 125,843,662.14 | G74: =G35+G67 -> 8,958,637.86 | H74: 0.00 | I74: 15,575,285.40
D75: 2024 | E75: 177,475,000.00 | F75: =F36+F69 -> 131,025,682.66 | G75: =G36+G69 -> 40,832,217.34 | H75: 0.00 | I75: 5,617,100.00
D76: 2025 | E76: 27,248,545.34 | F76: =F37 -> 24,928,474.40 | G76: =G37 -> 1,312,025.60 | H76: =H37 -> 0.00 | I76: =I37 -> 1,008,045.34
D77: 2026 | E77: =F77+G77+H77+I77 -> 1,200,000.00 | F77: =F38 -> 0.00 | G77: 0.00 | H77: 0.00 | I77: 1,200,000.00
D78: 2027 | E78: 1,200,000.00 | F78: 0.00 | G78: 0.00 | H78: 0.00 | I78: 1,200,000.00
D79: 2028 | E79: 1,200,000.00 | F79: 0.00 | G79: 0.00 | H79: 0.00 | I79: 1,200,000.00
D80: 2029 | E80: 1,200,000.00 | F80: 0.00 | G80: 0.00 | H80: 0.00 | I80: 1,200,000.00
D81: 2030 | E81: 1,200,000.00 | F81: 0.00 | G81: 0.00 | H81: 0.00 | I81: 1,200,000.00
A82: ИТОГО по Государственной программе Иркутской области «Формирование современной городской среды» на 2018-2024 годы; по Государственной программе Иркутской области «Формирование современной городской среды» на 2025-2030 годы: | D82: Итого | E82: =F82+G82+H82+I82 -> 737,943,766.28 | F82: =SUM(F83:F95) -> 574,520,450.54 | G82: =SUM(G83:G95) -> 125,249,589.70 | H82: 0.00 | I82: 38,173,726.04
D83: 2018 | E83: =F83+G83+H83+I83 -> 43,902,538.94 | F83: =F28 -> 30,542,921.75 | G83: 12,023,605.47 | H83: 0.00 | I83: 1,336,011.72
D84: 2019 | E84: 61,660,494.16 | F84: 46,514,564.75 | G84: 10,194,383.22 | H84: 0.00 | I84: 4,951,546.19
D85: 2020 | E85: 86,747,611.42 | F85: 68,661,401.23 | G85: 16,275,463.82 | H85: 0.00 | I85: 1,810,746.37
D86: 2021 | E86: 143,799,391.02 | F86: =F72 -> 115,262,405.98 | G86: =G72 -> 27,561,194.02 | H86: 0.00 | I86: 975,791.02
D87: 2022 | E87: 40,732,600.00 | F87: =F73 -> 31,741,337.63 | G87: =G73 -> 8,092,062.37 | H87: 0.00 | I87: =I73 -> 899,200.00
D88: 2023 | E88: 150,377,585.40 | F88: =F74 -> 125,843,662.14 | G88: =G74 -> 8,958,637.86 | H88: 0.00 | I88: =I74 -> 15,575,285.40
D89: 2024 | E89: =F89+G89+H89+I89 -> 177,475,000.00 | F89: =F75 -> 131,025,682.66 | G89: =G75 -> 40,832,217.34 | H89: 0.00 | I89: =I75 -> 5,617,100.00
D90: 2025 | E90: =F90+G90+H90+I90 -> 27,248,545.34 | F90: =F76 -> 24,928,474.40 | G90: =G76 -> 1,312,025.60 | H90: 0.00 | I90: =I76 -> 1,008,045.34
D91: 2026 | E91: =F91+G91+H91+I91 -> 1,200,000.00 | F91: 0.00 | G91: 0.00 | H91: 0.00 | I91: =I77 -> 1,200,000.00
D92: 2027 | E92: =F92+G92+H92+I92 -> 1,200,000.00 | F92: 0.00 | G92: 0.00 | H92: 0.00 | I92: =I78 -> 1,200,000.00
D93: 2028 | E93: 1,200,000.00 | F93: 0.00 | G93: 0.00 | H93: 0.00 | I93: 1,200,000.00
D94: 2029 | E94: 1,200,000.00 | F94: 0.00 | G94: 0.00 | H94: 0.00 | I94: 1,200,000.00
D95: 2030 | E95: =F95+G95+H95+I95 -> 1,200,000.00 | F95: 0.00 | G95: 0.00 | H95: 0.00 | I95: =I81 -> 1,200,000.00
A96: 2 | B96: Государственная программа Иркутской области «Экономическое развитие и инновационная экономика» на 2019-2025 год Государственная программа Иркутской области «Экономическое развитие и инновационная экономика» на 2024-2030 год
A97: 1 | B97: Субсидии на реализацию мероприятий перечня проектов народных инициатив. Основное мероприятие «Обеспечение эффективного управления экономическим развитием Иркутской области» подпрограммы «Государственная политика в сфере экономического развития Иркутской области» ВП "Социально-экономическое развитие муниципальных образований Иркутской области" Мероприятие (результат): Оказана поддержка органам местного самоуправления муниципальных образований Иркутской области в целях реализации мероприятий перечня проектов народных инициатив. | C97: Мероприятие 3.4. Благоустройство территории озера "Молодежное" (в рамках реализации перечня проектов Народных инициатив) Подпрограммы «Развитие благоустройства территории города Усолье-Сибирское» на 2018-2030 годы | D97: Итого | E97: =F97+G97+H97+I97 -> 3,343,766.77 | F97: =SUM(F98:F98) -> 0.00 | G97: =SUM(G98:G98) -> 3,009,390.09 | H97: =SUM(H98:H98) -> 0.00 | I97: =SUM(I98:I98) -> 334,376.68
D98: 2021 | E98: =F98+G98+H98+I98 -> 3,343,766.77 | F98: 0.00 | G98: 3,009,390.09 | H98: 0.00 | I98: 334,376.68
C99: Мероприятие 3.5. Благоустройство территории острова "Варничный" (в рамках реализации перечня проектов Народных инициатив) Подпрограммы «Развитие благоустройства территории города Усолье-Сибирское» на 2018-2030 годы | D99: Итого | E99: =F99+G99+H99+I99 -> 91,200.00 | F99: =SUM(F100:F100) -> 0.00 | G99: =SUM(G100:G100) -> 82,080.00 | H99: =SUM(H100:H100) -> 0.00 | I99: =SUM(I100:I100) -> 9,120.00
D100: 2021 | E100: =F100+G100+H100+I100 -> 91,200.00 | F100: 0.00 | G100: 82,080.00 | H100: 0.00 | I100: 9,120.00
C101: Мероприятие 3.6. Благоустройство ул. Интернациональной, в рамках проекта «Город из трамвайного окна» в г. Усолье-Сибирское (Победитель VI Всероссийского конкурса лучших проектов создания комфортной городской среды в категории «Малые города России») | D101: Итого | E101: =F101+G101+H101+I101 -> 10,335,287.58 | F101: =F102 -> 0.00 | G101: =G102 -> 9,198,405.73 | H101: 0.00 | I101: 1,136,881.85
D102: 2023 | E102: 10,335,287.58 | F102: 0.00 | G102: 9,198,405.73 | H102: 0.00 | I102: 1,136,881.85
C103: Мероприятие 3.9. Благоустройство ул.Интернациональной, в рамках проекта «Город из трамвайного окна 2: молекулярное наследие» в г. Усолье-Сибирское (Победитель VIII Всероссийского конкурса лучших проектов создания комфортной городской среды в категории «Малые города России») (Благоустройство территории на пересечении улиц Ленина и Менделеева) | D103: Итого | E103: =F103+G103+H103+I103 -> 4,999,000.00 | F103: =F104 -> 0.00 | G103: =G104 -> 4,449,109.89 | H103: 0.00 | I103: 549,890.11
D104: 2024 | E104: =F104+G104+H104+I104 -> 4,999,000.00 | F104: 0.00 | G104: 4,449,109.89 | H104: 0.00 | I104: 549,890.11
C105: Мероприятие 3.10. Благоустройство территории озера «Молодежное» (установка баскетбольных щитов) Подпрограммы «Развитие благоустройства территории города Усолье-Сибирское» на 2018-2030 годы | D105: Итого | E105: =F105+G105+H105+I105 -> 115,562.00 | F105: =F106 -> 0.00 | G105: =G106 -> 102,850.18 | H105: 0.00 | I105: 12,711.82
D106: 2024 | E106: =F106+G106+H106+I106 -> 115,562.00 | F106: 0.00 | G106: 102,850.18 | H106: 0.00 | I106: 12,711.82
C107: Мероприяие 3.11. «Архитектурно-пространственная концепция благоустройства Комсомольского и Ленинского проспектов в г. Усолье-Сибирское Иркутской области. Первый этап: «Город говорит». Концепция благоустройства Комсомольского проспекта в г. Усолье-Сибирское Иркутской области» | D107: Итого | E107: =F107+G107+H107+I107 -> 7,000,000.00 | F107: 0.00 | G107: 0.00 | H107: 0.00 | I107: =I108 -> 7,000,000.00
D108: 2026 | E108: 7,000,000.00 | F108: 0.00 | G108: 0.00 | H108: 0.00 | I108: 7,000,000.00
C109: Мероприятие 3.12. «Разработка документации для участия во всероссийском конкурсе лучших проектов создания комфортной среды в категории «малые города»» | D109: Итого | E109: =E110 -> 1,200,000.00 | F109: =F110 -> 0.00 | G109: 0.00 | H109: 0.00 | I109: 1,200,000.00
D110: 2026 | E110: =SUM(F110:I110) -> 1,200,000.00 | F110: 0.00 | G110: 0.00 | H110: 0.00 | I110: 1,200,000.00
A111: ИТОГО по Государственной программе Иркутской области «Экономическое развитие и инновационная экономика» на 2019-2025 годы; по Государственной программе Иркутской области «Экономическое развитие и инновационная экономика» на 2024-2030 годы. | D111: Итого | E111: =F111+G111+H111+I111 -> 27,084,816.35 | F111: =SUM(F112:F123) -> 0.00 | G111: =SUM(G112:G123) -> 16,841,835.89 | H111: 0.00 | I111: 10,242,980.46
D112: 2019 | E112: =F112+G112+H112+I112 -> 0.00 | F112: 0.00 | G112: 0.00 | H112: 0.00 | I112: 0.00
D113: 2020 | E113: 0.00 | F113: 0.00 | G113: 0.00 | H113: 0.00 | I113: 0.00
D114: 2021 | E114: 3,434,966.77 | F114: =F98 -> 0.00 | G114: =G98+G100 -> 3,091,470.09 | H114: 0.00 | I114: =I98+I100 -> 343,496.68
D115: 2022 | E115: 0.00 | F115: 0.00 | G115: 0.00 | H115: 0.00 | I115: 0.00
D116: 2023 | E116: 10,335,287.58 | F116: 0.00 | G116: =G102 -> 9,198,405.73 | H116: =H102 -> 0.00 | I116: 1,136,881.85
D117: 2024 | E117: =F117+G117+H117+I117 -> 5,114,562.00 | F117: 0.00 | G117: =G104+G106 -> 4,551,960.07 | H117: =H104+H106 -> 0.00 | I117: =I104+I106 -> 562,601.93
D118: 2025 | E118: =F118+G118+H118+I118 -> 0.00 | F118: 0.00 | G118: 0.00 | H118: 0.00 | I118: 0.00
D119: 2026 | E119: =F119+G119+H119+I119 -> 8,200,000.00 | F119: 0.00 | G119: 0.00 | H119: 0.00 | I119: =I108+I110 -> 8,200,000.00
D120: 2027 | E120: =F120+G120+H120+I120 -> 0.00 | F120: 0.00 | G120: 0.00 | H120: 0.00 | I120: 0.00
D121: 2028 | E121: 0.00 | F121: 0.00 | G121: 0.00 | H121: 0.00 | I121: 0.00
D122: 2029 | E122: 0.00 | F122: 0.00 | G122: 0.00 | H122: 0.00 | I122: 0.00
D123: 2030 | E123: =F123+G123+H123+I123 -> 0.00 | F123: 0.00 | G123: 0.00 | H123: 0.00 | I123: 0.00
A124: ВСЕГО: | D124: Итого | E124: =F124+G124+H124+I124 -> 765,028,582.63 | F124: =SUM(F125:F137) -> 574,520,450.54 | G124: =SUM(G125:G137) -> 142,091,425.59 | H124: 0.00 | I124: 48,416,706.50
D125: 2018 | E125: =F125+G125+H125+I125 -> 43,902,538.94 | F125: =F83 -> 30,542,921.75 | G125: =G83 -> 12,023,605.47 | H125: 0.00 | I125: 1,336,011.72
D126: 2019 | E126: 61,660,494.16 | F126: =F84+F112 -> 46,514,564.75 | G126: 10,194,383.22 | H126: =H29 -> 0.00 | I126: =I84+I112 -> 4,951,546.19
D127: 2020 | E127: 86,747,611.42 | F127: 68,661,401.23 | G127: 16,275,463.82 | H127: 0.00 | I127: 1,810,746.37
D128: 2021 | E128: 147,234,357.79 | F128: 115,262,405.98 | G128: 30,652,664.11 | H128: 0.00 | I128: 1,319,287.70
D129: 2022 | E129: 40,732,600.00 | F129: 31,741,337.63 | G129: 8,092,062.37 | H129: 0.00 | I129: 899,200.00
D130: 2023 | E130: 160,712,872.98 | F130: 125,843,662.14 | G130: 18,157,043.59 | H130: 0.00 | I130: 16,712,167.25
D131: 2024 | E131: 182,589,562.00 | F131: 131,025,682.66 | G131: 45,384,177.41 | H131: 0.00 | I131: 6,179,701.93
D132: 2025 | E132: 27,248,545.34 | F132: 24,928,474.40 | G132: 1,312,025.60 | H132: 0.00 | I132: 1,008,045.34
D133: 2026 | E133: =F133+G133+H133+I133 -> 9,400,000.00 | F133: 0.00 | G133: 0.00 | H133: 0.00 | I133: =I119+I91 -> 9,400,000.00
D134: 2027 | E134: 1,200,000.00 | F134: 0.00 | G134: 0.00 | H134: 0.00 | I134: =I120+I92 -> 1,200,000.00
D135: 2028 | E135: 1,200,000.00 | F135: 0.00 | G135: 0.00 | H135: 0.00 | I135: =I121+I93 -> 1,200,000.00
D136: 2029 | E136: 1,200,000.00 | F136: 0.00 | G136: 0.00 | H136: 0.00 | I136: =I122+I94 -> 1,200,000.00
D137: 2030 | E137: 1,200,000.00 | F137: 0.00 | G137: 0.00 | H137: 0.00 | I137: =I123+I95 -> 1,200,000.00 | J137: ».
A139: Мэр города | E139: М.В. Торопкин
